fUST/lending_fUST_20240207
["ID","MTS","AMOUNT","RATE_DAILY","PERIOD"]
[313391160,1707267039742,-843.029575,0.00027571,2]
[313391161,1707267039751,-843.029575,0.00027571,2]
[313391162,1707267039761,-1868.50136376,0.00027664,2]
[313391163,1707267039770,-500.0,0.00027671,3]
[313391164,1707267039779,-500.0,0.00027671,3]
[313391165,1707267039788,-500.0,0.00027671,3]
[313391166,1707267039798,-500.0,0.00027671,3]
[313391167,1707267039807,-500.0,0.00027671,3]
[313391169,1707267039816,-500.0,0.00027671,3]
[313391170,1707267039825,-569.3,0.00027671,2]
[313391171,1707267039835,-664.61,0.00027671,3]
[313391172,1707267039846,-500.0,0.00027671,3]
[313391173,1707267039855,-500.0,0.00027671,3]
[313391174,1707267039863,-500.0,0.00027671,3]
[313391175,1707267039872,-500.0,0.00027671,3]
[313391176,1707267039881,-698.892821,0.00027671,2]
[313391177,1707267039890,-698.892821,0.00027671,2]
[313391178,1707267039900,-698.892821,0.00027671,2]
[313391179,1707267039909,-698.892821,0.00027671,2]
[313391180,1707267039919,-500.0,0.00027671,3]
[313391181,1707267039929,-251.37978832,0.00027671,3]
[313391182,1707267039939,-254.358481,0.00027671,2]
[313391183,1707267039949,-254.358481,0.00027671,2]
[313391184,1707267039958,-500.0,0.00027671,3]
[313391185,1707267039968,-254.358481,0.00027671,2]
[313391186,1707267039977,-254.358481,0.00027671,2]
[313391187,1707267039986,-500.0,0.00027671,3]
[313391188,1707267039995,-720.1,0.00027671,3]
[313391189,1707267040003,-1754.98,0.00027671,3]
[313391190,1707267040012,-2504.99,0.00027671,3]
[313391191,1707267040021,-151.0,0.00027671,2]
[313391192,1707267040030,-151.0,0.00027671,2]
[313391193,1707267040039,-858.57,0.00027671,3]
[313391194,1707267040048,-500.0,0.00027671,3]
[313391195,1707267040056,-599.42,0.00027671,3]
[313391196,1707267040065,-151.0,0.00027671,2]
[313391197,1707267040074,-151.0,0.00027671,2]
[313391198,1707267040083,-1000.43,0.00027671,3]
[313391199,1707267040092,-4353.2,0.00027671,3]
[313391200,1707267040101,-582.17,0.00027671,3]
[313391201,1707267040110,-978.79,0.00027671,3]
[313391202,1707267040118,-1217.49,0.00027671,3]
[313391203,1707267040127,-4290.67,0.00027671,3]
[313391204,1707267040137,-500.0,0.00027671,3]
[313391205,1707267040146,-530.64,0.00027671,3]
[313391206,1707267040155,-7071.37,0.00027671,3]
[313391207,1707267040164,-511.13,0.00027671,3]
[313391208,1707267040173,-1663.69,0.00027671,3]
[313391209,1707267040183,-1178.54,0.00027671,3]
[313391210,1707267040192,-726.58,0.00027671,3]
[313391211,1707267040201,-500.0,0.00027671,3]
[313391212,1707267040210,-500.0,0.00027671,3]
[313391213,1707267040220,-5273.17,0.00027671,3]
[313391214,1707267040229,-843.029575,0.00027671,2]
[313391215,1707267040239,-843.029575,0.00027671,2]
[313391216,1707267040248,-1105.73,0.00027671,3]
[313391217,1707267040257,-843.029575,0.00027671,2]
[313391218,1707267040266,-843.029575,0.00027671,2]
[313391219,1707267040275,-2257.86,0.00027671,3]
[313391220,1707267040284,-696.21,0.00027671,3]
[313391221,1707267040294,-10106.28,0.00027671,3]
[313391222,1707267040303,-2318.25,0.00027671,3]
[313391223,1707267040312,-500.0,0.00027671,3]
[313391224,1707267040322,-500.0,0.00027671,3]
[313391225,1707267040331,-1287.12,0.00027671,3]
[313391226,1707267040340,-381.24484773,0.00027671,3]
[313391227,1707267040350,-235.05,0.000278,2]
[313391228,1707267040359,-436937.86931392,0.0002782,2]
[313391229,1707267040368,-2090.25573355,0.0002782,2]
[313391230,1707267040377,-300.0,0.0002782,2]
[313391231,1707267040386,-313.11416557,0.0002782,6]
[313391232,1707267040395,-155.00930056,0.0002782,2]
[313391233,1707267040404,-1650.19411677,0.0002782,2]
[313391234,1707267040413,-156.38968762,0.0002782,2]
[313391235,1707267040423,-622.36860432,0.0002782,2]
[313391236,1707267040432,-1831.07268714,0.0002782,2]
[313391237,1707267040441,-765.83829115,0.0002782,2]
[313391238,1707267040450,-155.22119217,0.0002782,2]
[313391239,1707267040460,-3252.59212443,0.0002782,2]
[313391240,1707267040469,-151.0,0.0002782,2]
[313391241,1707267040478,-254.358481,0.0002782,2]
[313391242,1707267040487,-254.358481,0.0002782,2]
[313391243,1707267040496,-675.13806257,0.000279,2]
[313391244,1707267040506,-5000.0,0.00027936,5]
[313391245,1707267040515,-180.06935571,0.00027941,2]
[313391246,1707267040524,-440.17460025,0.00027941,2]
[313391248,1707267040533,-4056.29496103,0.00027941,2]
[313391250,1707267040542,-155.03409384,0.00027941,2]
[313391252,1707267040552,-426.66199522,0.00027941,2]
[313391253,1707267040562,-156.87017078,0.00027941,2]
[313391254,1707267040571,-295.45050683,0.00027941,2]
[313391255,1707267040580,-1583.172084,0.00027941,2]
[313391256,1707267040589,-323.57048434,0.00027941,2]
[313391257,1707267040598,-161.10115107,0.00027941,2]
[313391258,1707267040607,-309.98450155,0.00027941,2]
[313391259,1707267040617,-167.32375546,0.00027941,2]
[313391260,1707267040626,-4695.30394613,0.00027941,2]
[313391261,1707267040636,-228.12834369,0.00027941,2]
[313391262,1707267040648,-157.23235059,0.00027941,2]
[313391263,1707267040658,-260.68664381,0.00027941,2]
[313391264,1707267040667,-7971.79381667,0.00027941,2]
[313391265,1707267040676,-155.05116273,0.00027941,2]
[313391266,1707267040686,-309.9395475,0.00027941,2]
[313391267,1707267040695,-151.0,0.00027941,2]
[313391268,1707267040704,-698.892821,0.00027941,2]
[313391269,1707267040713,-698.892821,0.00027941,2]
[313391270,1707267040723,-254.358481,0.00027941,2]
[313391271,1707267040732,-254.358481,0.00027941,2]
[313391272,1707267040742,-283.142045,0.00027941,2]
[313391273,1707267040751,-151.0,0.00027941,2]
[313391274,1707267040760,-843.029575,0.00027941,2]
[313391275,1707267040769,-843.029575,0.00027941,2]
[313391276,1707267040778,-200.0,0.00027942,2]
[313391277,1707267040787,-773.57734513,0.00027942,2]
[313391278,1707267040797,-680.3937856,0.00027943,2]
[313391279,1707267040807,-1138.92299914,0.00027943,2]
[313391280,1707267040817,-164.49311095,0.00027943,2]
[313391281,1707267040827,-214.5515238,0.00027943,2]
[313391282,1707267040837,-170.17336039,0.00027943,2]
[313391283,1707267040846,-166.87686881,0.00027943,2]
[313391284,1707267040855,-1996.50298693,0.00027943,2]
[313391285,1707267040865,-19906.99800967,0.00027943,2]
[313391286,1707267040874,-161.28090304,0.00027943,2]
[313391287,1707267040884,-213.6847704,0.00027943,2]
[313391288,1707267040893,-262.76233732,0.00027943,2]
[313391289,1707267040903,-346.27817447,0.00027943,2]
[313391290,1707267040913,-270.75770097,0.00027943,2]
[313391291,1707267040922,-554.94823898,0.00027943,2]
[313391292,1707267040931,-2107.6155977,0.00027943,2]
[313391293,1707267040940,-155.02170304,0.00027943,2]
[313391294,1707267040950,-155.35988771,0.00027943,2]
[313391295,1707267040959,-151.0,0.00027943,2]
[313391296,1707267040968,-151.0,0.00027943,2]
[313391297,1707267040977,-698.892821,0.00027943,2]
[313391298,1707267040986,-698.892821,0.00027943,2]
[313391299,1707267040995,-254.358481,0.00027943,2]
[313391300,1707267041004,-254.358481,0.00027943,2]
[313391301,1707267041013,-151.0,0.00027943,2]
[313391302,1707267041022,-843.029575,0.00027943,2]
[313391303,1707267041032,-843.029575,0.00027943,2]
[313391304,1707267041042,-905.63862374,0.00027944,2]
[313391305,1707267041051,-329.93073591,0.00027944,2]
[313391306,1707267041061,-620.23996484,0.00027944,2]
[313391307,1707267041071,-181.19417615,0.00027944,2]
[313391308,1707267041081,-167.27020705,0.00027944,2]
[313391309,1707267041090,-151.0,0.00027944,2]
[313391310,1707267041099,-151.0,0.00027944,2]
[313391311,1707267041108,-151.0,0.00027945,2]
[313391312,1707267041117,-375.14379586,0.00027945,3]
[313391313,1707267041126,-151.0,0.00027945,2]
[313391314,1707267041135,-500.0,0.00027945,3]
[313391315,1707267041144,-500.0,0.00027945,3]
[313391316,1707267041153,-500.0,0.00027945,3]
[313391317,1707267041162,-500.0,0.00027945,3]
[313391318,1707267041171,-500.0,0.00027945,3]
[313391319,1707267041181,-569.3,0.00027945,2]
[313391320,1707267041190,-664.61,0.00027945,3]
[313391321,1707267041199,-500.0,0.00027945,3]
[313391322,1707267041208,-500.0,0.00027945,3]
[313391323,1707267041218,-500.0,0.00027945,3]
[313391324,1707267041227,-500.0,0.00027945,3]
[313391325,1707267041236,-698.892821,0.00027945,2]
[313391326,1707267041245,-698.892821,0.00027945,2]
[313391327,1707267041254,-698.892821,0.00027945,2]
[313391328,1707267041263,-500.0,0.00027945,3]
[313391329,1707267041273,-254.358481,0.00027945,2]
[313391330,1707267041282,-254.358481,0.00027945,2]
[313391331,1707267041291,-500.0,0.00027945,3]
[313391332,1707267041300,-254.358481,0.00027945,2]
[313391337,1707267041388,-254.358481,0.00027945,2]
[313391339,1707267041397,-500.0,0.00027945,3]
[313391340,1707267041406,-720.1,0.00027945,3]
[313391341,1707267041415,-1754.98,0.00027945,3]
[313391342,1707267041424,-2504.99,0.00027945,3]
[313391343,1707267041433,-858.57,0.00027945,3]
[313391344,1707267041442,-599.42,0.00027945,3]
[313391345,1707267041452,-151.0,0.00027945,2]
[313391346,1707267041461,-1000.43,0.00027945,3]
[313391347,1707267041469,-4353.2,0.00027945,3]
[313391348,1707267041478,-582.17,0.00027945,3]
[313391349,1707267041487,-978.79,0.00027945,3]
[313391350,1707267041496,-1217.49,0.00027945,3]
[313391351,1707267041505,-4290.67,0.00027945,3]
[313391352,1707267041515,-500.0,0.00027945,3]
[313391353,1707267041524,-530.64,0.00027945,3]
[313391354,1707267041533,-7071.37,0.00027945,3]
[313391355,1707267041541,-511.13,0.00027945,3]
[313391356,1707267041550,-1663.69,0.00027945,3]
[313391357,1707267041559,-1178.54,0.00027945,3]
[313391358,1707267041568,-726.58,0.00027945,3]
[313391359,1707267041577,-500.0,0.00027945,3]
[313391360,1707267041586,-5273.17,0.00027945,3]
[313391361,1707267041596,-843.029575,0.00027945,2]
[313391362,1707267041605,-843.029575,0.00027945,2]
[313391363,1707267041615,-1105.73,0.00027945,3]
[313391364,1707267041624,-843.029575,0.00027945,2]
[313391365,1707267041633,-843.029575,0.00027945,2]
[313391366,1707267041646,-2257.86,0.00027945,3]
[313391367,1707267041655,-696.21,0.00027945,3]
[313391368,1707267041664,-10106.28,0.00027945,3]
[313391369,1707267041673,-2318.25,0.00027945,3]
[313391370,1707267041683,-500.0,0.00027945,3]
[313391371,1707267041692,-500.0,0.00027945,3]
[313391372,1707267041701,-1287.12,0.00027945,3]
[313391373,1707267041711,-233.4377,0.00027976,2]
[313391374,1707267041721,-459.57779537,0.00028,3]
[313391375,1707267041730,-3000.0,0.00028,2]
[313391376,1707267041739,-500.0,0.00028,2]
[313391377,1707267041748,-874.0,0.00028,4]
[313391378,1707267041757,-5477.0,0.00028,4]
[313391379,1707267041766,-151.0,0.00028017,2]
[313391380,1707267041775,-158.926865,0.00028017,2]
[313391381,1707267041784,-269.05142053,0.00028099,2]
[313391382,1707267041793,-500.0,0.00028099,2]
[313391383,1707267041802,-158.85198404,0.00028099,2]
[313391384,1707267041811,-500.0,0.00028099,2]
[313391385,1707267041820,-500.0,0.00028099,2]
[313391386,1707267041829,-455.05526561,0.00028099,2]
[313391387,1707267041838,-319.62023002,0.00028099,2]
[313391388,1707267041846,-328.30120406,0.00028099,2]
[313391389,1707267041855,-500.0,0.00028099,2]
[313391390,1707267041864,-500.0,0.00028099,2]
[313391391,1707267041873,-550.29702012,0.00028099,2]
[313391392,1707267041882,-500.0,0.00028099,2]
[313391393,1707267041891,-843.029575,0.00028099,2]
[313391394,1707267041899,-843.029575,0.00028099,2]
[313391395,1707267041908,-15485.80497092,0.000281,2]
[313391396,1707267041917,-698.892821,0.000281,2]
[313391397,1707267041927,-698.892821,0.000281,2]
[313391398,1707267041935,-254.358481,0.000281,2]
[313391399,1707267041945,-254.358481,0.000281,2]
[313391400,1707267041953,-443023.27684709,0.000282,3]
[313391752,1707268241684,-1290.65162282,0.00024019,2]
[313391753,1707268241694,-4495.12556647,0.0002402,2]
[313391754,1707268241704,-155.00775039,0.0002402,4]
[313391755,1707268241713,-244.197801,0.00024024,2]
[313391756,1707268241722,-13617.6538241,0.0002483,2]
[313391757,1707268241731,-20509.83983384,0.0002483,2]
[313391758,1707268241741,-8739.62667206,0.0002483,2]
[313391759,1707268241750,-4045.82056096,0.00024844,2]
[313391760,1707268241760,-784.39500808,0.00025305,5]
[313391761,1707268241769,-309.87598319,0.0002538,2]
[313391762,1707268241778,-826.85558733,0.000261,2]
[313391763,1707268241789,-679.31527439,0.00026464,2]
[313391764,1707268241798,-2103.55,0.0002679,3]
[313391765,1707268241808,-228.31510903,0.00026796,2]
[313391766,1707268241817,-403.26386569,0.00026799,2]
[313391767,1707268241826,-288.89388684,0.00026799,2]
[313391768,1707268241835,-26625.16065128,0.000268,2]
[313391769,1707268241847,-51885.72471623,0.000268,2]
[313391801,1707269431979,-155.00775039,0.00024119,4]
[313391802,1707269431988,-1290.65162282,0.00024669,2]
[313391803,1707269431998,-4495.12556647,0.0002467,2]
[313391804,1707269432008,-1024.9296204,0.000247,2]
[313391805,1707269432017,-34.28543992,0.00024751,2]
[313391855,1707269437906,-131.88459749,0.00024751,2]
[313391857,1707269437916,-227.76446236,0.00024851,2]
[313391870,1707269438027,-17625.04028465,0.00024851,2]
[313391873,1707269438037,-6550.12592752,0.00024851,2]
[313391876,1707269438047,-4241.315804,0.00024851,2]
[313391879,1707269438056,-3092.17181883,0.00024857,2]
[313391882,1707269438066,-283.18972184,0.00025793,2]
[313391885,1707269438075,-7012.0,0.000265,2]
[313391888,1707269438085,-155.3208045,0.00026699,7]
[313391891,1707269438094,-34221.55012333,0.000267,2]
[313391894,1707269438104,-925.15001031,0.000267,2]
[313391897,1707269438113,-295.56299471,0.00026798,2]
[313391900,1707269438123,-4453.72757753,0.00026798,2]
[313391902,1707269438133,-1000.93057008,0.00026799,2]
[313391904,1707269438142,-1000.0400016,0.00026799,2]
[313391906,1707269438151,-63433.23792156,0.000268,2]
[313391909,1707269438164,-912.55429601,0.000268,2]
[313391913,1707269438191,-3858.30770334,0.000268,2]
[313392029,1707270163225,-264.12377728,0.0003,30]
[313392030,1707270163305,-191.016972,0.00032877,120]
[313392031,1707270163326,-808.983028,0.00033,33]
[313392032,1707270163383,-11982.67610752,0.0003,30]
[313392033,1707270163403,-4503.0,0.0003,30]
[313392034,1707270163504,-1000.0,0.00031,31]
[313392035,1707270163585,-10993.63539592,0.00033,90]
[313392036,1707270165788,201.42397,0.0003,30]
[313392037,1707270466750,200.0,0.0003,30]
[313392068,1707270631961,-155.01705188,0.0002409,4]
[313392071,1707270631972,-180.01166945,0.00024091,2]
[313392074,1707270631985,-547.53425189,0.00024091,2]
[313392199,1707270638088,-563.11527069,0.00024091,2]
[313392200,1707270638097,-4495.12556647,0.00024092,2]
[313392201,1707270638107,-6776.78098237,0.00024871,2]
[313392202,1707270638116,-1048.07328647,0.00024871,2]
[313392214,1707270641177,-2102.15549889,0.00024871,2]
[313392215,1707270641186,-2661.20504101,0.00024871,2]
[313392216,1707270641196,-262.2403515,0.00025304,2]
[313392217,1707270641205,-627.88540269,0.00026398,2]
[313392218,1707270641214,-167.45624031,0.0002669,3]
[313392219,1707270641224,-461.23726915,0.000267,2]
[313392220,1707270641234,-202.8666869,0.000267,2]
[313392221,1707270641244,-241.8386206,0.000267,2]
[313392222,1707270641253,-311.3468061,0.000267,2]
[313392223,1707270641262,-154.2732216,0.000267,2]
[313392224,1707270641271,-153.0,0.000267,2]
[313392225,1707270641282,-259.5971145,0.000267,2]
[313392226,1707270641291,-281.3631986,0.000267,2]
[313392227,1707270641300,-153.0,0.000267,2]
[313392228,1707270641309,-158.6820887,0.000267,2]
[313392229,1707270641318,-153.0,0.000267,2]
[313392230,1707270641327,-399.3983604,0.000267,2]
[313392231,1707270641336,-153.0,0.000267,2]
[313392232,1707270641346,-153.0,0.000267,2]
[313392233,1707270641354,-153.0,0.000267,2]
[313392234,1707270641364,-151.28,0.0002678,2]
[313392235,1707270641373,-2575.44,0.0002679,3]
[313392236,1707270641383,-2146.2,0.0002679,3]
[313392237,1707270641392,-1788.5,0.0002679,3]
[313392238,1707270641401,-1490.42,0.0002679,3]
[313392239,1707270641410,-5871.20646173,0.00026798,2]
[313392240,1707270641419,-2065.03845749,0.000268,2]
[313392258,1707270643001,-552.17321011,0.000268,2]
[313392268,1707270646050,-423.91799147,0.000268,2]
[313392269,1707270646062,-4902.53369428,0.000268,2]
[313392270,1707270646086,-18341.4558497,0.000268,2]
[313392355,1707271841347,-465.19676197,0.00024086,2]
[313392382,1707271843222,-825.46443006,0.00024086,2]
[313392383,1707271843232,-155.01705188,0.00024087,4]
[313392384,1707271843241,-1669.98858089,0.00024087,2]
[313392411,1707271846235,-2825.13698558,0.00024087,2]
[313392412,1707271846244,-155.74432463,0.00024119,2]
[313392413,1707271846254,-1372.31358663,0.000247,2]
[313392414,1707271846263,-167.45624027,0.00024806,2]
[313392415,1707271846273,-3065.94995189,0.00024881,2]
[313392419,1707272304044,191.0,0.000328,120]
[313392453,1707273032353,-155.01705188,0.00022764,4]
[313392455,1707273032363,-1290.66119203,0.00022773,2]
[313392457,1707273032373,-4495.12556647,0.00022774,2]
[313392459,1707273032382,-1287.87237008,0.00022781,2]
[313392461,1707273032391,-435.3958479,0.00023494,2]
[313392463,1707273032400,-167.45624027,0.00024781,2]
[313392465,1707273032410,-75.58667442,0.00024881,2]
[313392467,1707273032419,-219.08718685,0.00024881,2]
[313392514,1707273041678,-864.7499,0.00024881,2]
[313392550,1707273043461,-492.95914074,0.00024881,2]
[313392552,1707273043472,-4383.82956075,0.00024881,2]
[313392553,1707273043485,-616.17043925,0.00024881,2]
[313392554,1707273043495,-451.41475348,0.00024881,2]
[313392630,1707274232528,-155.01705188,0.00019772,3]
[313392632,1707274232538,-155.01705188,0.00019773,2]
[313392634,1707274232547,-295.73444606,0.00019773,2]
[313392635,1707274232556,-165.35525111,0.0001979,2]
[313392637,1707274232565,-4495.12556647,0.00019897,2]
[313392639,1707274232575,-19918.13279308,0.00019898,2]
[313392640,1707274232584,-167.45624027,0.000199,2]
[313392643,1707274232593,-1377.0,0.0002,2]
[313392646,1707274232602,-200.0,0.00021975,7]
[313392649,1707274232611,-5000.0,0.00022,2]
[313392652,1707274232620,-1191.3201568,0.00022781,2]
[313392655,1707274232629,-5000.0,0.00024,2]
[313392658,1707274232639,-155.3088614,0.00024118,2]
[313392661,1707274232649,-280.0,0.00024172,7]
[313392664,1707274232658,-217.8335533,0.00024678,2]
[313392667,1707274232667,-254.83671761,0.00024782,2]
[313392670,1707274232677,-3740.54,0.00024871,3]
[313392673,1707274232686,-151.0,0.00024872,2]
[313392676,1707274232695,-151.0,0.00024872,2]
[313392679,1707274232704,-153.364988,0.00024874,2]
[313392682,1707274232713,-164.792587,0.00024874,2]
[313392685,1707274232722,-974.32806518,0.00024881,2]
[313392688,1707274232731,-3832.97804361,0.00024881,2]
[313392691,1707274232742,-5000.0,0.00024881,2]
[313392694,1707274232751,-1387.15236946,0.00024881,2]
[313392696,1707274232760,-313.17501102,0.00024881,6]
[313392697,1707274232769,-1250.42041706,0.00024881,2]
[313392698,1707274232782,-840.17468641,0.00024881,2]
[313392699,1707274232792,-151.0,0.00024881,2]
[313392700,1707274232802,-65.45496965,0.00024881,2]
[313392705,1707274238654,-1290.66119203,0.00021974,2]
[313392706,1707274238665,-85.54503035,0.00024881,2]
[313392707,1707274238674,-149.90705353,0.00024881,2]
[313392708,1707274238761,-4.26877647,0.00024881,2]
[313392709,1707274238771,-274.812487,0.00024881,2]
[313392710,1707274238781,-274.812487,0.00024881,2]
[313392711,1707274238790,-274.812487,0.00024881,2]
[313392712,1707274238800,-274.812487,0.00024881,2]
[313392713,1707274238810,-235.79527367,0.00024881,2]
[313392755,1707274241895,-39.01721333,0.00024881,2]
[313392757,1707274241904,-274.812487,0.00024881,2]
[313392759,1707274241915,-274.812487,0.00024881,2]
[313392761,1707274241924,-274.812487,0.00024881,2]
[313392763,1707274241935,-151.0,0.00024881,2]
[313392765,1707274241946,-151.0,0.00024881,2]
[313392768,1707274241957,-151.0,0.00024881,2]
[313392769,1707274241966,-216.099555,0.00024881,2]
[313392771,1707274241976,-216.099555,0.00024881,2]
[313392774,1707274241987,-216.099555,0.00024881,2]
[313392776,1707274241996,-216.099555,0.00024881,2]
[313392778,1707274242005,-216.099555,0.00024881,2]
[313392780,1707274242015,-216.099555,0.00024881,2]
[313392782,1707274242024,-569.53399753,0.00024882,2]
[313392830,1707274243956,-2344.46290575,0.00024882,2]
[313392850,1707275174535,155.02015262,0.00018163,3]
[313392851,1707275192324,155.02015262,0.00017996,3]
[313392852,1707275212330,155.02015262,0.00017996,3]
[313392853,1707275234832,155.02015262,0.00017996,3]
[313392854,1707275256831,155.02015262,0.00017996,3]
[313392855,1707275259533,155.02015262,0.00017996,2]
[313392856,1707275260518,24345.97984738,0.00017996,2]
[313392857,1707275260546,30011.94640424,0.00017996,2]
[313392858,1707275279337,155.02015262,0.00017996,3]
[313392859,1707275299491,155.02015262,0.00016195,3]
[313392860,1707275319342,155.02015262,0.00016195,3]
[313392861,1707275341341,155.02015262,0.00016195,3]
[313392862,1707275361152,25000.0,0.00016195,2]
[313392863,1707275361182,25000.0,0.00016195,2]
[313392864,1707275361212,25000.0,0.00016195,2]
[313392865,1707275361240,549.72374286,0.00016195,2]
[313392866,1707275361269,25000.0,0.00016195,2]
[313392867,1707275361296,184679.76339341,0.00016195,2]
[313392868,1707275365843,155.02015262,0.00016195,3]
[313392869,1707275377032,43203.64982248,0.00016195,2]
[313392870,1707275383843,155.02015262,0.00017996,3]
[313392871,1707275399847,155.02015262,0.00017996,3]
[313392872,1707275422346,155.02015262,0.00017996,3]
[313392900,1707275431722,-155.02015262,0.00017894,2]
[313392902,1707275431732,-243.81886523,0.00017895,2]
[313392903,1707275431741,-167.45624027,0.00017896,2]
[313392906,1707275431751,-4495.12556647,0.00017989,2]
[313392907,1707275431760,-4374.31917541,0.00017991,2]
[313392910,1707275431772,-14760.815334,0.00017991,2]
[313392912,1707275431781,-155.39569101,0.00017996,2]
[313392914,1707275431790,-228.9174546,0.00018166,2]
[313392915,1707275431799,-24900.0,0.00018927,2]
[313392917,1707275431808,-151.0,0.00019486,2]
[313392919,1707275431817,-200.0,0.00019795,2]
[313392921,1707275431826,-1045.78984852,0.00019897,2]
[313392923,1707275431836,-172.437493,0.00019977,2]
[313392925,1707275431845,-172.437493,0.00019977,2]
[313392927,1707275431854,-1837.34778216,0.00019977,3]
[313392929,1707275431867,-1057.70724688,0.00019977,3]
[313392932,1707275431879,-658.31347731,0.00019977,3]
[313393012,1707275437820,-357.755,0.00017893,2]
[313393013,1707275437928,-282.60316557,0.00017893,2]
[313393014,1707275437938,-172.437493,0.00019987,2]
[313393015,1707275437946,-172.437493,0.00019987,2]
[313393016,1707275437956,-172.437493,0.00019987,2]
[313393017,1707275437965,-172.437493,0.00019987,2]
[313393018,1707275437975,-78864.78300493,0.00019997,2]
[313393019,1707275437984,-172.437493,0.00019997,2]
[313393020,1707275437993,-172.437493,0.00019997,2]
[313393021,1707275438002,-278.913726,0.00019997,2]
[313393022,1707275438011,-278.913726,0.00019997,2]
[313393023,1707275438021,-1201.66555398,0.0002,2]
[313393024,1707275438030,-1290.66119203,0.0002,2]
[313393025,1707275438040,-278.913726,0.00020822,2]
[313393026,1707275438049,-278.913726,0.00020822,2]
[313393027,1707275438058,-278.913726,0.00020822,2]
[313393028,1707275438067,-278.913726,0.00020822,2]
[313393029,1707275438076,-278.913726,0.00020822,2]
[313393030,1707275438085,-278.913726,0.00020822,2]
[313393031,1707275438094,-151.0,0.00020977,2]
[313393032,1707275438103,-2970.4797643,0.00021,2]
[313393033,1707275438112,-172.437493,0.00021,2]
[313393034,1707275438123,-172.437493,0.00021,2]
[313393035,1707275438134,-151.0,0.00021,2]
[313393036,1707275438145,-151.0,0.00021,2]
[313393037,1707275438156,-278.913726,0.00021,2]
[313393038,1707275438164,-278.913726,0.00021,2]
[313393039,1707275438174,-1045.78984851,0.00021633,2]
[313393040,1707275438183,-280.0,0.00021774,7]
[313393041,1707275438192,-169.710996,0.00021918,2]
[313393042,1707275438201,-571.9168719,0.00022392,5]
[313393043,1707275438210,-151.0,0.00022468,2]
[313393044,1707275438220,-172.437493,0.00022781,2]
[313393045,1707275438231,-172.437493,0.00022781,2]
[313393046,1707275438241,-151.0,0.00022781,2]
[313393047,1707275438250,-151.0,0.00022781,2]
[313393048,1707275438260,-1176.14275732,0.00022781,2]
[313393049,1707275438270,-9967.3761107,0.00023,2]
[313393050,1707275438279,-172.437493,0.00023,2]
[313393051,1707275438288,-172.437493,0.00023,2]
[313393052,1707275438298,-151.0,0.00023,2]
[313393053,1707275438307,-266.496397,0.00023,2]
[313393054,1707275438403,-278.913726,0.00023,2]
[313393055,1707275438413,-278.913726,0.00023,2]
[313393056,1707275438422,-169.710996,0.000232,2]
[313393057,1707275438431,-1045.78984851,0.00023369,2]
[313393058,1707275438440,-391.0,0.00023951,7]
[313393059,1707275438449,-151.0,0.00023959,2]
[313393060,1707275438458,-153.0,0.00024384,2]
[313393061,1707275438468,-169.710996,0.00024482,2]
[313393062,1707275438478,-151.0,0.00024782,2]
[313393063,1707275438488,-4039.14093432,0.00024871,2]
[313393064,1707275438497,-172.437493,0.00024871,2]
[313393065,1707275438506,-172.437493,0.00024871,2]
[313393066,1707275438516,-182.185297,0.00024871,2]
[313393067,1707275438525,-278.913726,0.00024871,2]
[313393068,1707275438535,-278.913726,0.00024871,2]
[313393069,1707275438547,-172.437493,0.00024881,2]
[313393070,1707275438557,-172.437493,0.00024881,2]
[313393071,1707275438566,-172.437493,0.00024881,2]
[313393072,1707275438575,-172.437485,0.00024881,2]
[313393073,1707275438584,-281.1392551,0.00024881,2]
[313393074,1707275438593,-546.7517271,0.00024881,2]